{"text_format":"1","workbook":"xlsx","n_sheets":2,"sheets":["Projektierung Aufstellung","Daten für Excel Befüllung"],"not_rendered":{"charts":0,"images":0,"macros":1,"external_links":0,"defined_names":1,"comments":2,"pivot_tables":0},"unopened":[],"bounds":{"document_bytes":16777216,"sheet_cells":100000,"rows_first":2000,"rows_last":500,"rows_between":2000,"halvings":0,"cell_chars":16384,"cell_head_chars":4096},"cells_cut":0,"cells_raw":0,"read":"whole","date_system":"1900"}

{"sheet":"Projektierung Aufstellung","index":0,"n_rows":85,"n_cols":47,"rows_kept":85,"cut":false,"hidden":false,"merged":[[1,5,1,14],[9,1,9,2],[11,16,11,20],[10,16,10,20],[10,21,10,26],[11,21,11,26],[12,21,12,26],[14,1,14,3],[15,1,15,3],[4,15,4,23],[13,16,13,20],[12,16,12,20],[14,21,14,26],[15,21,15,26],[15,16,15,20],[14,16,14,20],[16,1,16,3],[2,5,2,14],[3,5,3,14],[5,5,5,14],[4,5,4,14],[8,5,8,14],[7,5,7,14],[6,5,6,14],[14,5,14,9],[12,5,12,9],[11,5,11,9],[16,5,16,9],[17,5,17,9],[13,5,13,9],[1,1,1,3],[2,2,2,3],[3,2,3,3],[4,2,4,3],[5,2,5,3],[6,2,6,3],[8,1,8,3],[7,2,7,3],[10,1,10,3],[11,1,11,3],[12,1,12,3],[13,1,13,3],[15,5,15,9],[9,5,9,40],[1,24,1,27],[2,24,2,27],[3,24,3,27],[5,24,5,27],[4,24,4,27],[1,15,1,23],[2,15,2,23],[3,15,3,23],[2,28,2,40],[3,28,3,40],[7,28,7,40],[5,28,5,40],[6,28,6,40],[6,15,6,23],[8,15,8,23],[5,15,5,23],[8,28,8,40],[11,29,11,40],[12,29,12,40],[13,29,13,40],[18,10,18,15],[13,10,13,15],[12,10,12,15],[11,10,11,15],[15,10,15,15],[4,28,4,40],[16,29,16,40],[13,21,13,26],[14,10,14,15],[16,10,16,15],[17,10,17,15],[15,29,15,40],[14,29,14,40],[16,16,16,20],[16,21,16,26],[17,21,17,26],[18,21,18,26],[18,16,18,20],[17,16,17,20],[21,29,21,40],[20,29,20,40],[10,10,10,15],[0,5,0,40],[0,0,0,3],[9,0,27,0],[1,0,8,0],[17,1,27,2],[1,28,1,40],[7,24,7,27],[6,24,6,27],[8,24,8,27],[7,15,7,23],[18,5,18,9],[10,5,10,9],[27,3,27,18],[27,30,27,38],[23,29,23,40],[22,29,22,40],[27,20,27,29],[17,29,17,40],[18,29,18,40],[19,29,19,40],[10,28,10,40]]}
[]
[null,"K.Nr.",null,null,null,"Funktion",null,null,null,null,null,null,null,null,null,"Ausführende Firmen",null,null,null,null,null,null,null,null,"Tel.",null,null,null,"E-Mail Adressen"]
[null,"Firma",null,null,null,"Bauherr:"]
[null,"Betreiber",null,null,null,"Archithekt:"]
[null,"Besitzer",null,null,null,"Bauleiter:"]
[null,"Straße",null,null,null,"EDV-Admin:"]
[null,"Ort",null,null,null,"Elektriker:"]
[null,"PLZ",null,null,null,"Tischler:"]
[null,null,null,null,null,"Schlosser:"]
[null,"Aufgenommen am  __ . __ . ____"]
[null,null,null,null,null,"SCH Ansprechpartner",null,null,null,null,null,null,null,null,null,null,"Tel.",null,null,null,null,"E-Mail",null,null,null,null,null,null,"Benötigtes Verwaltung und Programmier Euipment:"]
[null,null,null,null,null,"Team Zentral",null,null,null,null,"Oskar Nimmervoll",null,null,null,null,null,"0732/6599-3060",null,null,null,null,"oskar.nimmervoll@schachermayer.at",null,null,null,null,null,null,"Anzahl","Salto Artikel Bezeichnungen:"]
[null,null,null,null,null,"Team Zentral",null,null,null,null,"Thomas Frühwirth",null,null,null,null,null,"0732/6599-3060",null,null,null,null,"thomas.fruehwirth@schachermayer.at",null,null,null,null,null,null,null,"Kodiergerät Mifare EC904B0EU (USB+LAN+NFC)"]
[null,"Wunsch Montage Termin:",null,null,null,"Team Zentral",null,null,null,null,"Sandro Hain",null,null,null,null,null,"0732/6599-3060",null,null,null,null,"sandro.hain@schachermayer.at",null,null,null,null,null,null,null,"Tragbares Programmiergerät PPD800 (NFC+USB Schnitstelle)"]
[null,"Fertigstellung:",null,null,null,"Team Ost",null,null,null,null,"Manfred Herrmann",null,null,null,null,null,"07326599-6422\t  ",null,null,null,null,"manfred.Herrmann@schachermayer.at",null,null,null,null,null,null,null,"Gästekarte Mifare Ultralight 85,60 x 53,98 x 0,80 mm, Kunststoff weiß "]
[null,null,null,null,null,"Team Süd",null,null,null,null,"Werner Gritsch",null,null,null,null,null,"0732/6599-3060",null,null,null,null,"werner.gritsch@schachermayer.at",null,null,null,null,null,null,null,"Gästekarte Mifare Ultralight 85,60 x 53,98 x 0,80 mm, Kunststoff BEDRUCKT"]
[null,null,null,null,null,"Team West",null,null,null,null,"Ewald Schadl ",null,null,null,null,null,"0664/78788704  \t               ",null,null,null,null,"ewald.Schadl@schachermayer.at",null,null,null,null,null,null,null,"Backoffice Schlüsselanhänger Mifare DESFire4KB, Kunststoff gelb mit SCH-Logo"]
[null,"SVERWEIS",null,null,null,"Team West",null,null,null,null,"Alexander Kaindl",null,null,null,null,null,"0664/88639524",null,null,null,null,"alexander.kaindl@schachermayer.at",null,null,null,null,null,null,null,"Zutrittsmanagementsoftware SPABasic"]
[null,null,null,null,null,"Auendienst Verkäufer",null,null,null,null,null,null,null,null,null,null,null,null,null,null,null,null,null,null,null,null,null,null,null,"Zusatz Software Module"]
[null,null,null,null,null,null,null,null,null,null,null,null,null,null,null,null,null,null,null,null,null,null,null,null,null,null,null,null,null,"Montageschlüssel für abnehmbaren Geo-Lesekopf SP 220764"]
[null,null,null,null,null,null,null,null,null,null,null,null,null,null,null,null,null,null,null,null,null,null,null,null,null,null,null,null,null,"Montageschlüssel für abnehmbaren Neo-Lesekopf SP 225542"]
[null,null,null,null,null,null,null,null,null,null,null,null,null,null,null,null,null,null,null,null,null,null,null,null,null,null,null,null,null,"Neoxx Montageschlüssel SP226010"]
[null,null,null,null,null,null,null,null,null,null,null,null,null,null,null,null,null,null,null,null,null,null,null,null,null,null,null,null,null,"Montageschlüssel XS4 Mini, Stahl verzinkt"]
[]
[]
[]
[]
[null,null,null,"Benötigte Salto Komponeten Ausführung",null,null,null,null,null,null,null,null,null,null,null,null,null,null,null,null,"Angaben bei Schlosstausch",null,null,null,null,null,null,null,null,null,"Angeben für E-Zylinder"]
["Stück","Etage (Stockwerke)","Raumbezeichnung ","Salto Bauform:\n(z.b.Beschlag)","Produkt\nAusführung","Drückerform","PZ Entfenrung","Modellvarianten","Protokollierende \nNotöffnung","Bitte nicht Stören ","Tür Reed Kontakt","Farbe Beschlag","Farbe Leser Abdeckung ","Türstärke in mm","Unterlagsplatten","Unterlagsplatten Abmessungen","Dückernuss","Wetterschutz IP","Modellvariante\nGlastüren","Ausführung  für Codetastatur","Entfernung","Dornmass","Nuss in mm","Brandschutz","Fluchttür z. B. EN179 oder EN1125 ","Schlosstype","Schloss Richtung","Benötigte Schloss Ausführung","Schloss Stulp Ausführung","Schloss Ausgleichshülse","Zylindermodell","Lesekopf Verlängerung","Oberflächen Farbe","Spernasen ausführung","Innenknauf Form","Panik  Ausführung","Digitalzylinder Zusatzoption","Zylinder-länge\nAußen A ","Zylinder-länge\nInnen B","Energiesparsschalter","Notiz\nwichtige Information,",null,"Artikel Zusammenfassung Beschläge \nWandleser Steuerungen",null,"Artikel Zusammenfassung E-Zylinder",null,"Artikel Zusammenfassung Schlösser"]
[null,null,null,null,null,null,null,null,null,null,null,null,null,null,null,null,null,null,null,null,null,null,null,null,null,null,null,null,null,null,null,null,null,null,null,null,null,null,null,null,null,null,{"$f":"_xlfn.TEXTJOIN(\"\",1,INDEX(30:30,{5,8,6,7,12,13,14,17,18}))","v":""},null,{"$f":"_xlfn.CONCAT(E30,AE30,AF30,AL30,AI30,AM30,AG30,AH30,AJ30,AK30,)","v":""},null,{"$f":"_xlfn.CONCAT(AE30,AF30,AL30,AI30,AM30,AG30,AH30,AJ30,AK30,)","v":""}]
[null,null,null,null,null,null,null,null,null,null,null,null,null,null,null,null,null,null,null,null,null,null,null,null,null,null,null,null,null,null,null,null,null,null,null,null,null,null,null,null,null,null,{"$f":"_xlfn.CONCAT(E31,H31,F31,IF(G31=\"\",\"\",TEXT(G31,\"00\")),L31,M31,N31,Q31,R31,)","v":""},null,{"$f":"_xlfn.CONCAT(E31,AE31,AF31,AL31,AI31,AM31,AG31,AH31,AJ31,AK31,)","v":""}]
[null,null,null,null,null,null,null,null,null,null,null,null,null,null,null,null,null,null,null,null,null,null,null,null,null,null,null,null,null,null,null,null,null,null,null,null,null,null,null,null,null,null,"",null,""]
[null,null,null,null,null,null,null,null,null,null,null,null,null,null,null,null,null,null,null,null,null,null,null,null,null,null,null,null,null,null,null,null,null,null,null,null,null,null,null,null,null,null,"",null,""]
[null,null,null,null,null,null,null,null,null,null,null,null,null,null,null,null,null,null,null,null,null,null,null,null,null,null,null,null,null,null,null,null,null,null,null,null,null,null,null,null,null,null,"",null,""]
[null,null,null,null,null,null,null,null,null,null,null,null,null,null,null,null,null,null,null,null,null,null,null,null,null,null,null,null,null,null,null,null,null,null,null,null,null,null,null,null,null,null,"",null,""]
[null,null,null,null,null,null,null,null,null,null,null,null,null,null,null,null,null,null,null,null,null,null,null,null,null,null,null,null,null,null,null,null,null,null,null,null,null,null,null,null,null,null,"",null,""]
[null,null,null,null,null,null,null,null,null,null,null,null,null,null,null,null,null,null,null,null,null,null,null,null,null,null,null,null,null,null,null,null,null,null,null,null,null,null,null,null,null,null,"",null,""]
[null,null,null,null,null,null,null,null,null,null,null,null,null,null,null,null,null,null,null,null,null,null,null,null,null,null,null,null,null,null,null,null,null,null,null,null,null,null,null,null,null,null,"",null,""]
[null,null,null,null,null,null,null,null,null,null,null,null,null,null,null,null,null,null,null,null,null,null,null,null,null,null,null,null,null,null,null,null,null,null,null,null,null,null,null,null,null,null,"",null,""]
[null,null,null,null,null,null,null,null,null,null,null,null,null,null,null,null,null,null,null,null,null,null,null,null,null,null,null,null,null,null,null,null,null,null,null,null,null,null,null,null,null,null,{"$f":"_xlfn.CONCAT(E40,H40,F40,IF(G40=\"\",\"\",TEXT(G40,\"00\")),L40,M40,N40,Q40,R40,)","v":""},null,""]
[null,null,null,null,null,null,null,null,null,null,null,null,null,null,null,null,null,null,null,null,null,null,null,null,null,null,null,null,null,null,null,null,null,null,null,null,null,null,null,null,null,null,{"$f":"_xlfn.CONCAT(E41,H41,F41,IF(G41=\"\",\"\",TEXT(G41,\"00\")),L41,M41,N41,Q41,R41,S41,)","v":""},null,""]
[null,null,null,null,null,null,null,null,null,null,null,null,null,null,null,null,null,null,null,null,null,null,null,null,null,null,null,null,null,null,null,null,null,null,null,null,null,null,null,null,null,null,{"$f":"_xlfn.CONCAT(E42,H42,F42,IF(G42=\"\",\"\",TEXT(G42,\"00\")),L42,M42,N42,Q42,R42,S42,T42,)","v":""},null,""]
[null,null,null,null,null,null,null,null,null,null,null,null,null,null,null,null,null,null,null,null,null,null,null,null,null,null,null,null,null,null,null,null,null,null,null,null,null,null,null,null,null,null,{"$f":"_xlfn.CONCAT(E43,H43,F43,IF(G43=\"\",\"\",TEXT(G43,\"00\")),L43,M43,N43,Q43,R43,S43,T43,)","v":""},null,""]
[null,null,null,null,null,null,null,null,null,null,null,null,null,null,null,null,null,null,null,null,null,null,null,null,null,null,null,null,null,null,null,null,null,null,null,null,null,null,null,null,null,null,"",null,""]
[null,null,null,null,null,null,null,null,null,null,null,null,null,null,null,null,null,null,null,null,null,null,null,null,null,null,null,null,null,null,null,null,null,null,null,null,null,null,null,null,null,null,"",null,""]
[null,null,null,null,null,null,null,null,null,null,null,null,null,null,null,null,null,null,null,null,null,null,null,null,null,null,null,null,null,null,null,null,null,null,null,null,null,null,null,null,null,null,"",null,""]
[null,null,null,null,null,null,null,null,null,null,null,null,null,null,null,null,null,null,null,null,null,null,null,null,null,null,null,null,null,null,null,null,null,null,null,null,null,null,null,null,null,null,"",null,""]
[null,null,null,null,null,null,null,null,null,null,null,null,null,null,null,null,null,null,null,null,null,null,null,null,null,null,null,null,null,null,null,null,null,null,null,null,null,null,null,null,null,null,"",null,""]
[null,null,null,null,null,null,null,null,null,null,null,null,null,null,null,null,null,null,null,null,null,null,null,null,null,null,null,null,null,null,null,null,null,null,null,null,null,null,null,null,null,null,"",null,""]
[null,null,null,null,null,null,null,null,null,null,null,null,null,null,null,null,null,null,null,null,null,null,null,null,null,null,null,null,null,null,null,null,null,null,null,null,null,null,null,null,null,null,"",null,""]
[null,null,null,null,null,null,null,null,null,null,null,null,null,null,null,null,null,null,null,null,null,null,null,null,null,null,null,null,null,null,null,null,null,null,null,null,null,null,null,null,null,null,"",null,""]
[null,null,null,null,null,null,null,null,null,null,null,null,null,null,null,null,null,null,null,null,null,null,null,null,null,null,null,null,null,null,null,null,null,null,null,null,null,null,null,null,null,null,"",null,""]
[null,null,null,null,null,null,null,null,null,null,null,null,null,null,null,null,null,null,null,null,null,null,null,null,null,null,null,null,null,null,null,null,null,null,null,null,null,null,null,null,null,null,"",null,""]
[null,null,null,null,null,null,null,null,null,null,null,null,null,null,null,null,null,null,null,null,null,null,null,null,null,null,null,null,null,null,null,null,null,null,null,null,null,null,null,null,null,null,"",null,""]
[null,null,null,null,null,null,null,null,null,null,null,null,null,null,null,null,null,null,null,null,null,null,null,null,null,null,null,null,null,null,null,null,null,null,null,null,null,null,null,null,null,null,"",null,""]
[null,null,null,null,null,null,null,null,null,null,null,null,null,null,null,null,null,null,null,null,null,null,null,null,null,null,null,null,null,null,null,null,null,null,null,null,null,null,null,null,null,null,"",null,""]
[null,null,null,null,null,null,null,null,null,null,null,null,null,null,null,null,null,null,null,null,null,null,null,null,null,null,null,null,null,null,null,null,null,null,null,null,null,null,null,null,null,null,"",null,""]
[null,null,null,null,null,null,null,null,null,null,null,null,null,null,null,null,null,null,null,null,null,null,null,null,null,null,null,null,null,null,null,null,null,null,null,null,null,null,null,null,null,null,"",null,""]
[null,null,null,null,null,null,null,null,null,null,null,null,null,null,null,null,null,null,null,null,null,null,null,null,null,null,null,null,null,null,null,null,null,null,null,null,null,null,null,null,null,null,"",null,""]
[null,null,null,null,null,null,null,null,null,null,null,null,null,null,null,null,null,null,null,null,null,null,null,null,null,null,null,null,null,null,null,null,null,null,null,null,null,null,null,null,null,null,"",null,""]
[null,null,null,null,null,null,null,null,null,null,null,null,null,null,null,null,null,null,null,null,null,null,null,null,null,null,null,null,null,null,null,null,null,null,null,null,null,null,null,null,null,null,"",null,""]
[null,null,null,null,null,null,null,null,null,null,null,null,null,null,null,null,null,null,null,null,null,null,null,null,null,null,null,null,null,null,null,null,null,null,null,null,null,null,null,null,null,null,"",null,""]
[null,null,null,null,null,null,null,null,null,null,null,null,null,null,null,null,null,null,null,null,null,null,null,null,null,null,null,null,null,null,null,null,null,null,null,null,null,null,null,null,null,null,"",null,""]
[null,null,null,null,null,null,null,null,null,null,null,null,null,null,null,null,null,null,null,null,null,null,null,null,null,null,null,null,null,null,null,null,null,null,null,null,null,null,null,null,null,null,"",null,""]
[null,null,null,null,null,null,null,null,null,null,null,null,null,null,null,null,null,null,null,null,null,null,null,null,null,null,null,null,null,null,null,null,null,null,null,null,null,null,null,null,null,null,"",null,""]
[null,null,null,null,null,null,null,null,null,null,null,null,null,null,null,null,null,null,null,null,null,null,null,null,null,null,null,null,null,null,null,null,null,null,null,null,null,null,null,null,null,null,"",null,""]
[null,null,null,null,null,null,null,null,null,null,null,null,null,null,null,null,null,null,null,null,null,null,null,null,null,null,null,null,null,null,null,null,null,null,null,null,null,null,null,null,null,null,"",null,""]
[null,null,null,null,null,null,null,null,null,null,null,null,null,null,null,null,null,null,null,null,null,null,null,null,null,null,null,null,null,null,null,null,null,null,null,null,null,null,null,null,null,null,"",null,""]
[null,null,null,null,null,null,null,null,null,null,null,null,null,null,null,null,null,null,null,null,null,null,null,null,null,null,null,null,null,null,null,null,null,null,null,null,null,null,null,null,null,null,"",null,""]
[null,null,null,null,null,null,null,null,null,null,null,null,null,null,null,null,null,null,null,null,null,null,null,null,null,null,null,null,null,null,null,null,null,null,null,null,null,null,null,null,null,null,"",null,""]
[null,null,null,null,null,null,null,null,null,null,null,null,null,null,null,null,null,null,null,null,null,null,null,null,null,null,null,null,null,null,null,null,null,null,null,null,null,null,null,null,null,null,"",null,""]
[null,null,null,null,null,null,null,null,null,null,null,null,null,null,null,null,null,null,null,null,null,null,null,null,null,null,null,null,null,null,null,null,null,null,null,null,null,null,null,null,null,null,"",null,""]
[null,null,null,null,null,null,null,null,null,null,null,null,null,null,null,null,null,null,null,null,null,null,null,null,null,null,null,null,null,null,null,null,null,null,null,null,null,null,null,null,null,null,"",null,""]
[null,null,null,null,null,null,null,null,null,null,null,null,null,null,null,null,null,null,null,null,null,null,null,null,null,null,null,null,null,null,null,null,null,null,null,null,null,null,null,null,null,null,"",null,""]
[null,null,null,null,null,null,null,null,null,null,null,null,null,null,null,null,null,null,null,null,null,null,null,null,null,null,null,null,null,null,null,null,null,null,null,null,null,null,null,null,null,null,"",null,""]
[null,null,null,null,null,null,null,null,null,null,null,null,null,null,null,null,null,null,null,null,null,null,null,null,null,null,null,null,null,null,null,null,null,null,null,null,null,null,null,null,null,null,"",null,""]
[null,null,null,null,null,null,null,null,null,null,null,null,null,null,null,null,null,null,null,null,null,null,null,null,null,null,null,null,null,null,null,null,null,null,null,null,null,null,null,null,null,null,"",null,""]
[null,null,null,null,null,null,null,null,null,null,null,null,null,null,null,null,null,null,null,null,null,null,null,null,null,null,null,null,null,null,null,null,null,null,null,null,null,null,null,null,null,null,"",null,""]
[null,null,null,null,null,null,null,null,null,null,null,null,null,null,null,null,null,null,null,null,null,null,null,null,null,null,null,null,null,null,null,null,null,null,null,null,null,null,null,null,null,null,"",null,""]
[null,null,null,null,null,null,null,null,null,null,null,null,null,null,null,null,null,null,null,null,null,null,null,null,null,null,null,null,null,null,null,null,null,null,null,null,null,null,null,null,null,null,"",null,""]
[null,null,null,null,null,null,null,null,null,null,null,null,null,null,null,null,null,null,null,null,null,null,null,null,null,null,null,null,null,null,null,null,null,null,null,null,null,null,null,null,null,null,"",null,""]
[null,null,null,null,null,null,null,null,null,null,null,null,null,null,null,null,null,null,null,null,null,null,null,null,null,null,null,null,null,null,null,null,null,null,null,null,null,null,null,null,null,null,"",null,""]
[null,null,null,null,null,null,null,null,null,null,null,null,null,null,null,null,null,null,null,null,null,null,null,null,null,null,null,null,null,null,null,null,null,null,null,null,null,null,null,null,null,null,"",null,""]
[null,null,null,null,null,null,null,null,null,null,null,null,null,null,null,null,null,null,null,null,null,null,null,null,null,null,null,null,null,null,null,null,null,null,null,null,null,null,null,null,null,null,"",null,""]
[null,null,null,null,null,null,null,null,null,null,null,null,null,null,null,null,null,null,null,null,null,null,null,null,null,null,null,null,null,null,null,null,null,null,null,null,null,null,null,null,null,null,"",null,""]

{"sheet":"Daten für Excel Befüllung","index":1,"n_rows":79,"n_cols":27,"rows_kept":79,"cut":false,"hidden":false,"merged":[[15,3,15,5],[3,12,3,14],[34,4,34,6],[34,8,34,9],[33,11,33,13],[42,8,42,9],[1,11,1,14],[15,11,15,14],[15,7,15,8],[15,16,15,22],[30,11,30,14]]}
[]
["Zylinderlänge A Aussen","Zylinderlängen B Innen"]
[null,null,null,null,null,null,null,null,null,null,null,null,null,null,null,null,null,null,null,null,null,null,null,null,null,null,"Zylindermodell"]
[null,null,null,null,"Energiesparschalter Ausführungen ",null,null,null,"Digitalzylinder  Ausführung",null,null,null,"Digitalzylinder Zusatzoption"]
[30,0,null,null,null,null,null,null,null,null,null,null,null,null,null,null,null,null,null,null,null,null,null,null,null,null,"E1"]
[35,10,null,null,"SCH 102252380",null,null,null,null,null,null,null,"R",null,null,null,null,null,null,null,null,null,null,null,null,null,"E2"]
[40,20,null,null,"Nein",null,null,null," A ",null,null,null,"G",null,null,null,null,null,null,null,null,null,null,null,null,null,"E3"]
[45,30,null,null,"Salto Offline",null,null,null,"-",null,null,null,"V",null,null,null,null,null,null,null,null,null,null,null,null,null,"E7"]
[50,35,null,null,"Salto Online",null,null,null,null,null,null,null,"-",null,null,null,null,null,null,null,null,null,null,null,null,null,"E8"]
[55,40,null,null,"Vorbereitet",null,null,null,null,null,null,null,null,null,null,null,null,null,null,null,null,null,null,null,null,null,"E9"]
[60,45,null,null,null,null,null,null,null,null,null,null,null,null,null,null,null,null,null,null,null,null,null,null,null,null,"CL119M28"]
[65,50,null,null,null,null,null,null,null,null,null,null,null,null,null,null,null,null,null,null,null,null,null,null,null,null,"CL119W28"]
[70,55,null,null,null,null,null,null,null,null,null,null,null,null,null,null,null,null,null,null,null,null,null,null,null,null,"CL119M40"]
[75,60,null,null,null,null,null,null,null,null,null,null,null,null,null,null,null,null,null,null,null,null,null,null,null,null,"CL119W40"]
[80,65,null,null,null,null,null,null,null,null,null,null,null,null,null,null,null,null,null,null,null,null,null,null,null,null,"P4P60150CPB1"]
[85,70,null,"Unterlagsplatten Ausführung",null,null,null,"Tür Reed Kontakt",null,null,null,"Schloss Ausführung",null,null,null,null,"Benötigte Schloss Ausführung",null,null,null,null,null,null,null,null,null,"P4R60150CPB1"]
[90,75,null,null,null,null,null,null,null,null,null,null,null,null,null,null,null,null,null,null,null,null,null,null,null,null,"P3P48825CPB1"]
[95,80,null,"Ja",null,null,null,"Für Holztüren schmalen Beschlag",null,null,null,"Bleibt",null,null,null,null,"---",null,null,null,null,null,null,null,null,null,"P3P48825CPB1"]
[100,85,null,"Nein",null,null,null,"Für Holztüren breiten Beschlag",null,null,null,"Tausch \"Wechselfunktion\"",null,null,null,null,"Tausch \"Wechselfunktion\"",null,null,null,null,null,null,null,null,null,"P3P48860CPB1"]
[105,90,null,null,null,null,null,"Für Stahltüren schmalen Beschlag",null,null,null,"FB",null,null,null,null,"FB",null,null,null,null,null,null,null,null,null,"P3P48890CPB0"]
[110,95,null,null,null,null,null,"Für Stahltüren breiten Beschlag",null,null,null,"SVP",null,null,null,null,"SVP",null,null,null,null,null,null,null,null,null,"P3P48825CPB0"]
[115,100,null,null,null,"Türstärke",null,null,null,null,null,"MFV o. Panik",null,null,null,null,"MFV o. Panik",null,null,null,null,null,null,null,null,null,"P3P48825CPB0"]
[120,105,null,null,null,null,null,null,null,null,null,"MFV m. Panik",null,null,null,null,"MFV m. Panik",null,null,null,null,null,null,null,null,null,"P3P48860CPB0"]
[125,110,null,"Modellvarianten",null,3,null,"Notöffnung",null,null,null,"Tausch FH 9mm",null,null,null,null,"Wendeschloss mit Rosettenlöcher",null,null,null,null,null,null,null,null,null,"P3P48890CPB0"]
[130,115,null,null,null,4,null,null,null,null,null,"Wendeschloss",null,null,null,null,"Panikschloss ohne SVP"]
[135,120,null,0,null,6,null,"PO",null,null,null,null,null,null,null,null,null,null,null,null,null,null,null,null,null,null,"E1"]
[140,125,null,2,null,7,null,"P1",null,null,null,null,null,null,null,null,null,null,null,null,null,null,null,null,null,null,"E2"]
[145,130,null,3,null,9,null,"P6",null,null,null,null,null,null,null,null,null,null,null,null,null,null,null,null,null,null,"E3"]
[150,135,null,4,null,1,null,null,null,null,null,null,null,null,null,null,null,null,null,null,null,null,null,null,null,null,"E9"]
[null,140,null,6,null,null,null,null,null,null,null,null,null,null,null,null,null,null,null,null,null,null,null,null,null,null,"CL119M28"]
[null,145,null,7,null,"H",null,null,null,null,null,null,null,null,null,null,null,null,null,null,null,null,null,null,null,null,"CL119M40"]
[null,150,null,"R ",null,"D",null,null,null,null,null,null,null,null,null,null,null,null,null,null,null,null,null,null,null,null,"CL119W28"]
[null,null,null,"RO",null,null,null,null,null,null,null,null,null,null,null,null,null,null,null,null,null,null,null,"Spernasen Ausführung",null,null,"CL119W40"]
[null,null,null,"SH",null,null,null,null,null,null,null,"Salto Bauform:\n(z.b.Beschlag)",null,null,"Technologie Ausführung"]
["Beschlag Entfernung","Beschlag PZ Masse",null,"0GD","Bei Schloss Tausch Be-Massung",null,null,null,"Schloss Ausgleichshülsen",null,null,null,null,null,null,null,null,null,null,null,null,null,null,"D"]
[null,null,null,"4GD",null,null,null,null,null,null,null,"ONE DIN Beschlag \"SH\" \"RO\" EM750O",null,null,"EM750","5;6;8;7;12;13;14;17;18;",null,null,null,null,null,null,null,"H"]
["72mm",72,null,null,"235 x 20 mm 65/72",null,null,null,"8mm --> 8,5 mm",null,null,"ONE  Beschlag \"EM75\"",null,null,"EM75","5;8;6;7;12;13;14;17;18;",null,null,null,null,null,null,null,"G"]
["88mm",88,null,null,null,null,null,null,null,null,null,"ONE Halbbeschlag \"EM750H / D\"",null,null,"EM75","5;8;6;7;12;13;14;17;18;",null,null,null,null,null,null,null,"Z"]
["92mm",92,null,null,"235 x 20 mm 80/72",null,null,null,"8mm --> 9 mm",null,null,"ONE Komplementärbeschlag Schmal \"E07\"",null,null,"E07","5;8;6;7;12;13;14;17;18;"]
["ohne","00",null,"C1","235 x 20 mm 80/72",null,null,null,"8mm --> 10 mm",null,null,"NEO Zylinder",null,null,"NM"]
["Glas","GD",null,0,"235 x 24 mm 55/72",null,null,null,"8,5mm --> 9 mm",null,null,"GEO Zylinder ",null,null,"G9"]
[null,null,null,"01","235 x 24 mm 65/72",null,null,null,"8,5mm --> 10 mm",null,null,"Original Breitschildbeschlag mit Keypad  \"E96\"",null,null,"E965","5;8;6;7;12;13;14;17;18;20;"]
[null,null,null,"02","235 x 24 mm 80/72",null,null,null,null,null,null,"Original Dopp. Beschlag 8mm \"E9CD\"",null,null,"E9CD","5;8;6;7;12;13;14;17;18;"]
[null,null,null,"03","250 x 18 mm 50/88",null,null,null,null,null,null,"Original Dopp. Beschlag 9mm  \"F9CD\"",null,null,"F9CD","5;8;6;7;12;13;14;17;18;"]
[null,null,null,"04","250 x 18 mm 60/88",null,null,null,null,null,null,"Original+ DIN Beschlag \"SH\" \"RO\"  EM450",null,null,"EM450","5;8;6;7;12;13;14;17;18;"]
["Drückernuss","Farbe Beschlag",null,"09","250 x 18 mm 70/88",null,null,null,null,null,null,"Original+ Beschlag  \"EM45\"",null,null,"EM45","5;6;8;7;12;13;14;17;18;"]
[null,null,null,null,"250 x 20 mm 50/88",null,null,null,null,null,null,"Original Breitschildbeschlag mit Keypad  \"E96\"",null,null,"EB65","5;8;6;7;12;13;14;17;18;20;"]
[8,"IM",null,null,null,null,null,null,null,null,null,"Original+ Breitschildbeschlag   EM65",null,null,"EM65","5;8;6;7;12;13;14;17;18;19;20;"]
[9,null,null,null,null,null,null,null,null,null,null,"Original+ Glastürbeschlag  \"EM65#GD\"",null,null,"EM65","5;8;6;7;12;13;14;17;18;19;"]
[null,"DB",null,null,"250x 20 mm 60/88",null,null,null,null,null,null,"Original+ Halbbeschlag  \"EM450H\"",null,null,"EM45","5;8;6;7;12;13;14;17;18;"]
[null,"IP",null,"Glastür Varianten","250 x 20 mm 70/88",null,null,null,null,null,null,"Original+ Komplementärbeschlag Schmal E04",null,null,"E04","5;8;6;7;12;13;14;17;18;"]
[null,"NE",null,"OLH","245 x 24 mm 30/92",null,null,null,null,null,null,"Original+ Komplementärbeschlag Breit \"E06\"",null,null,"E06","5;8;6;7;12;13;14;17;18;"]
[null,"PM",null,"ORH","245 x 24 mm 35/92",null,null,null,null,null,null,"MINI Beschlag Standard  \"EM150\"",null,null,"EM150","5;8;6;7;12;13;14;17;18;"]
[null,"PP",null,"OLR","245 x 24 mm 40/92",null,null,null,null,null,null,"MINI Beschlag Metall Optik \"EM350\"",null,null,"EM350","5;8;6;7;12;13;14;17;18;"]
[null,"BC",null,"ORR","245 x 24 mm 45/92",null,null,null,null,null,null,"Wandleser Aufputz Gerade  \"WRDM\"",null,null,"WRDM0S4",null,null,null,null,null,null,null,null,null,"Lesekopf Verlängerung"]
[null,"DB",null,null,null,null,null,null,null,null,null,"Wandleser Pin. Gerade  \"weiß\" WRDM0S4WV",null,null,"WRDM0S4WV"]
[null,null,null,null,null,null,null,null,null,null,null,"Wandleser Pin Gerade  \"Schwarz\" WRDM0S4BV",null,null,"WRDM0S4BV",null,null,null,null,null,null,null,null,null,1]
[null,null,null,null,null,null,null,null,null,null,null,"Wandleser Profileser  \"WRDM0M\"",null,null,"WRDM0M4",null,null,null,null,null,null,null,null,null,2]
["Beschlag Wetterschutz",null,null,null,null,null,null,null,null,null,null,"Wandleser Modular  \"B, W, S\" WRMM004#",null,null,"WRMM004",null,null,null,null,null,null,null,null,null,3]
[null,null,null,null,null,null,null,null,null,null,null,"Wandlesermodul Einbau  \"WRDMOP\"",null,null,"WRDMOP40"]
["-",null,null,null,null,null,null,null,null,null,null,"Wandleser Glasfront  \"WRDM0G\"",null,null,"WRDMOG4"]
[null,null,null,null,"270 x 20 mm 35/92",null,null,null,null,null,null,"Offline Steuerung   CU4200TEU",null,null,"CU4200TEU",null,null,null,null,null,null,null,null,null,"Farbe Gehäuse"]
[5,null,null,null,"270 x 20 mm 40/92",null,null,null,null,null,null,"Online Steuerung  CU42E0TEU",null,null,"CU42E0TEU",null,null,null,null,null,null,null,null,null,"CSB"]
["E",null,null,null,"270 x 20 mm 45/92",null,null,null,null,null,null,"blueNet Türsteuerung  CUC1B0TEU",null,null,"CUC1B0TEU",null,null,null,null,null,null,null,null,null,"CPB"]
[null,null,null,null,"270 x 24 mm 35/92",null,null,null,null,null,null,"blueNet GATEWAY 3 \"Weiß\" GATEWAYW3CEU",null,null,"GATEWAYW3CEU",null,null,null,null,null,null,null,null,null,"CSW"]
["N",null,null,null,"270 x 24 mm 40/92",null,null,null,null,null,null,"blueNet GATEWAY 3  \"Schwarz\" GATEWAYB3CEU",null,null,"GATEWAYB3CEU",null,null,null,null,null,null,null,null,null,"CPW"]
["E5",null,null,null,"270 x 24 mm 45/92",null,null,null,null,null,null,"blueNet node  \"Weiß\" RFNODE3W",null,null,"RFNODE3W",null,null,null,null,null,null,null,null,null,"PPB"]
[null,null,null,null,"300 x 20 mm 50/88",null,null,null,null,null,null,"blueNet  Node  \"Schwarz\"  RFNODE3B",null,null,"RFNODE3B",null,null,null,null,null,null,null,null,null,"PMB"]
[null,null,null,null,"300 x 20 mm 60/88",null,null,null,null,null,null,"blueNet  Repeater  \"Weiß\" REPEATER03WEU",null,null,"REPEATER03WEU",null,null,null,null,null,null,null,null,null,"PPW"]
[null,null,null,null,"300 x 20 mm 70/88",null,null,null,null,null,null,"blueNet Repeater  \"Schwarz\" REPEATER03BEU",null,null,"REPEATER03BEU",null,null,null,null,null,null,null,null,null,"PMW"]
[null,null,null,null,null,null,null,null,null,null,null,null,null,null,null,null,null,null,null,null,null,null,null,null,"BCB"]
[null,null,null,null,"300 x 24 mm 30/92",null,null,null,null,null,null,null,null,null,null,null,null,null,null,null,null,null,null,null,"NEB"]
[null,null,null,null,"300 x 24 mm 35/92",null,null,null,null,null,null,null,null,null,null,null,null,null,null,null,null,null,null,null,"NEW"]
[null,null,null,null,"300 x 24 mm 40/92"]
[null,null,null,null,"300 x 24 mm 45/92"]
[null,null,null,null,"xxx --> Siehe Bemerkungsfeld",null,null,null,null,null,null,null,null,null,null,null,null,null,null,null,null,null,null,null,"Innenknauf-Form"]
[null,null,null,null,null,null,null,null,null,null,null,null,null,null,null,null,null,null,null,null,null,null,null,null,"S"]
[null,null,null,null,null,null,null,null,null,null,null,null,null,null,null,null,null,null,null,null,null,null,null,null,"R"]
[null,null,null,null,null,null,null,null,null,null,null,null,null,null,null,null,null,null,null,null,null,null,null,null,"N "]